bitfinex/quotes_BTCUSD_20260315
["timestamp","ask_amount","ask_price","bid_price","bid_amount"]
[1773577133136,0.00132001,71742.0,71727.0,0.02970681]
[1773577133392,0.0014,71741.0,71728.0,0.04017087]
[1773577133837,0.0014,71741.0,71727.0,0.02970681]
[1773577135166,0.0014,71741.0,71728.0,0.04042497]
[1773577135993,0.0014,71741.0,71727.0,0.02970681]
[1773577136982,0.07141421,71742.0,71727.0,0.02970681]
[1773577137306,0.0014,71741.0,71727.0,0.02970681]
[1773577138557,0.06968135,71756.0,71728.0,0.04034318]
[1773577138764,0.0001,71742.0,71728.0,0.04034318]
[1773577139617,0.0002,71742.0,71728.0,0.04034318]
[1773577140626,0.0003,71742.0,71730.0,0.04024733]
[1773577141545,0.0004,71742.0,71730.0,0.04024733]
[1773577141724,0.00062001,71742.0,71730.0,0.04024733]
[1773577142549,0.00072001,71742.0,71731.0,0.06970486]
[1773577142726,0.00072001,71742.0,71731.0,0.10986991]
[1773577143199,0.00082001,71742.0,71731.0,0.10986991]
[1773577143948,0.00092001,71742.0,71731.0,0.10986991]
[1773577144755,0.00102001,71742.0,71730.0,0.06970486]
[1773577147061,0.00102001,71742.0,71730.0,0.10947051]
[1773577147972,0.00112001,71742.0,71730.0,0.10947051]
[1773577148763,0.00122001,71742.0,71730.0,0.10947051]
[1773577149479,0.00132001,71742.0,71730.0,0.10947051]
[1773577150470,0.00132001,71742.0,71730.0,0.10967051]
[1773577154958,0.00175301,71742.0,71730.0,0.10967051]
[1773577157002,0.00175301,71742.0,71730.0,0.10952084]
[1773577158822,0.00175301,71742.0,71730.0,0.06975519]
[1773577159474,0.00175301,71742.0,71730.0,0.23640783]
[1773577160821,0.00275301,71742.0,71730.0,0.23640783]
[1773577162232,0.00275301,71742.0,71732.0,0.06970389]
[1773577163934,0.00175301,71742.0,71732.0,0.06955431]
[1773577164236,0.00275301,71742.0,71732.0,0.06955431]
[1773577166397,0.00285301,71742.0,71732.0,0.06955431]
[1773577170719,0.06969515,71741.0,71730.0,0.14685264]
[1773577171079,0.06969515,71741.0,71727.0,0.0002]
[1773577171080,0.06969515,71741.0,71727.0,0.0699085]
[1773577172043,0.06969515,71741.0,71727.0,0.06960937]
[1773577172426,0.07069515,71741.0,71727.0,0.06960937]
[1773577172638,0.06969515,71741.0,71724.0,0.06971167]
[1773577174270,0.07069515,71741.0,71724.0,0.06971167]
[1773577174472,0.06969515,71741.0,71724.0,0.06971167]
[1773577175568,0.06969515,71741.0,71727.0,0.0002]
[1773577178634,0.07069515,71741.0,71727.0,0.0002]
[1773577178910,0.06969515,71741.0,71727.0,0.0002]
[1773577179315,0.07069515,71741.0,71727.0,0.0002]
[1773577179517,0.06969515,71741.0,71727.0,0.0002]
[1773577179905,0.07069515,71741.0,71727.0,0.0002]
[1773577180107,0.06969515,71741.0,71727.0,0.0002]
[1773577181881,0.06969515,71741.0,71723.0,0.06991238]
[1773577182220,0.2098348,71741.0,71715.0,0.0002]
[1773577182654,0.2088348,71741.0,71715.0,0.0002]
[1773577183659,0.2098348,71741.0,71715.0,0.0002]
[1773577184802,0.2088348,71741.0,71715.0,0.0002]
[1773577185299,0.2098348,71741.0,71715.0,0.0002]
[1773577185500,0.2088348,71741.0,71715.0,0.0002]
[1773577189298,0.20905481,71741.0,71715.0,0.0002]
[1773577190325,0.20905481,71741.0,71715.0,5.042e-05]
[1773577190689,0.20905481,71741.0,71715.0,0.06977083]
[1773577191887,0.20905481,71741.0,71715.0,5.042e-05]
[1773577192187,0.0014,71740.0,71716.0,0.03872204]
[1773577193338,0.0017011,71740.0,71716.0,0.03872204]
[1773577195513,0.06969709,71739.0,71715.0,5.042e-05]
[1773577195713,0.04103898,71738.0,71715.0,5.042e-05]
[1773577196238,0.04134008,71738.0,71715.0,5.042e-05]
[1773577197638,0.06969903,71737.0,71715.0,5.042e-05]
[1773577198302,0.07000013,71737.0,71715.0,5.042e-05]
[1773577198492,0.07000013,71737.0,71715.0,0.03862629]
[1773577198897,0.0014,71736.0,71715.0,0.03862629]
[1773577199293,0.0017011,71736.0,71715.0,0.03862629]
[1773577199823,0.06970098,71735.0,71715.0,0.03862629]
[1773577200245,0.07000208,71735.0,71715.0,0.03862629]
[1773577201534,0.07000208,71735.0,71716.0,0.0384815]
[1773577201696,0.0014,71734.0,71716.0,0.0384815]
[1773577201897,0.06970292,71733.0,71716.0,0.0384815]
[1773577202153,0.06970292,71733.0,71715.0,5.042e-05]
[1773577203565,0.06970292,71733.0,71708.0,0.07132678]
[1773577203566,0.06970292,71733.0,71709.0,0.06972625]
[1773577203769,0.02730116,71732.0,71710.0,0.03821834]
[1773577204169,0.06970486,71731.0,71711.0,0.06972431]
[1773577204483,0.06970486,71731.0,71711.0,0.10794265]
[1773577205076,0.06970486,71731.0,71709.0,0.03831342]
[1773577205243,0.06987406,71731.0,71709.0,0.03831342]
[1773577205647,0.07135892,71731.0,71709.0,0.03831342]
[1773577205871,0.06987406,71731.0,71707.0,0.0002]
[1773577206068,0.06987406,71731.0,71702.0,0.0002]
[1773577206069,0.00148486,71730.0,71702.0,0.0002]
[1773577206282,0.00143521,71728.0,71702.0,0.0002]
[1773577206479,0.06970681,71729.0,71702.0,0.0002]
[1773577206480,0.00143521,71726.0,71702.0,0.0002]
[1773577207569,0.00148006,71726.0,71702.0,0.0002]
[1773577208136,0.00148006,71726.0,71695.0,5e-05]
[1773577208258,0.0697107,71725.0,71694.0,0.0001819]
[1773577208460,0.18096533,71725.0,71694.0,0.0001819]
[1773577208944,0.32002431,71725.0,71705.0,0.0002]
[1773577209146,0.32002431,71725.0,71705.0,5e-05]
[1773577209350,0.13905898,71724.0,71705.0,5e-05]
[1773577209526,0.20890158,71725.0,71705.0,5e-05]
[1773577210031,0.13905898,71724.0,71705.0,5e-05]
[1773577210396,0.0001319,71724.0,71705.0,5e-05]
[1773577210795,0.0001319,71724.0,71697.0,0.0002]
[1773577211001,0.0001319,71724.0,71694.0,0.03889188]
[1773577211002,0.11125463,71722.0,71694.0,0.03889188]
[1773577211216,0.1394,71721.0,71694.0,0.03889188]
[1773577211417,0.25065463,71721.0,71693.0,0.0388863]
[1773577212296,0.14045898,71720.0,71695.0,0.0388863]
[1773577212519,0.20903736,71721.0,71695.0,0.0388863]
[1773577212687,0.14045898,71720.0,71695.0,0.0388863]
[1773577212889,0.0014,71719.0,71695.0,0.0388863]
[1773577213925,0.0014,71718.0,71695.0,0.0388863]
[1773577214105,0.0002638,71720.0,71695.0,0.0388863]
[1773577214310,0.06971944,71716.0,71697.0,0.05410205]
[1773577215322,0.0014,71715.0,71697.0,0.05410205]
[1773577215529,0.06971944,71716.0,71697.0,0.05449655]
[1773577215530,0.0014,71714.0,71697.0,0.05449655]
[1773577216068,0.0014,71713.0,71697.0,0.05449655]
[1773577216444,0.06972333,71712.0,71698.0,0.06973695]
[1773577216639,0.06972333,71712.0,71699.0,0.05411725]
[1773577216865,0.0014,71711.0,71699.0,0.05411725]
[1773577217030,0.03266291,71712.0,71699.0,0.05411725]
[1773577217379,0.0014,71711.0,71699.0,0.05411725]
[1773577217559,0.03266291,71712.0,71699.0,0.05451175]
[1773577217744,0.0014,71711.0,71699.0,0.05451175]
[1773577218126,0.0014,71710.0,71699.0,0.05451175]
[1773577218570,0.06971167,71724.0,71699.0,0.07012994]
[1773577218800,0.0014,71723.0,71702.0,0.03821834]
[1773577218963,0.0014,71722.0,71702.0,0.03821834]
[1773577219134,0.06971167,71724.0,71702.0,0.03821834]
[1773577219578,0.0014,71723.0,71702.0,0.03861284]
[1773577219731,0.0014,71722.0,71702.0,0.03861284]
[1773577220154,0.0001,71710.0,71702.0,0.03861284]
[1773577220354,0.0014,71714.0,71702.0,0.03861284]
[1773577220856,0.07112146,71714.0,71704.0,0.03859472]
[1773577221276,0.0001,71710.0,71704.0,0.03859472]
[1773577221488,0.0001,71710.0,71704.0,0.03886162]
[1773577222158,0.0002,71710.0,71704.0,0.03886162]
[1773577222867,0.0002,71710.0,71704.0,0.06999742]
[1773577223072,0.0003,71710.0,71705.0,0.04506145]
[1773577223590,0.0003,71710.0,71705.0,0.04532835]
[1773577223976,0.0004,71710.0,71705.0,0.04532835]
[1773577224183,0.0004,71710.0,71706.0,0.04506145]
[1773577224603,0.0004,71710.0,71706.0,0.04532835]
[1773577224798,0.0005,71710.0,71706.0,0.04532835]
[1773577225595,0.0006,71710.0,71706.0,0.04532835]
[1773577226737,0.0007,71710.0,71706.0,0.04532835]
[1773577227296,0.0008,71710.0,71706.0,0.04532835]
[1773577227770,0.07021167,71725.0,71706.0,0.04532835]
[1773577227945,0.0014,71723.0,71706.0,0.06999535]
[1773577228104,0.0014,71723.0,71707.0,0.04614936]
[1773577228301,0.0014,71722.0,71707.0,0.04614936]
[1773577228551,0.0014,71722.0,71707.0,0.04641626]
[1773577228854,0.0014,71721.0,71707.0,0.04641626]
[1773577230255,0.06971556,71720.0,71707.0,0.04641626]
[1773577230702,0.06971556,71720.0,71707.0,0.04661626]
[1773577231647,0.0014,71719.0,71707.0,0.04661626]
[1773577232003,0.0014,71718.0,71707.0,0.04661626]
[1773577232403,0.06971556,71722.0,71707.0,0.04661626]
[1773577232615,0.0014,71721.0,71707.0,0.04661626]
[1773577233018,0.06971556,71722.0,71707.0,0.04661626]
[1773577233019,0.0014,71720.0,71707.0,0.04661626]
[1773577233471,0.06971556,71722.0,71707.0,0.04661626]
[1773577233677,0.0014,71719.0,71707.0,0.04661626]
[1773577233903,0.0014,71719.0,71703.0,0.03838284]
[1773577237172,0.05188088,71717.0,71701.0,0.02340339]
[1773577238724,0.05188088,71717.0,71700.0,0.069735]
[1773577241530,0.06971944,71716.0,71700.0,0.069735]
[1773577242021,0.12160032,71716.0,71700.0,0.069735]
[1773577244035,0.05188088,71715.0,71700.0,0.069735]
[1773577244433,0.0014,71714.0,71700.0,0.069735]
[1773577244653,0.0014,71714.0,71701.0,0.02277512]
[1773577246384,0.07112139,71714.0,71702.0,0.06973306]
[1773577246975,0.0014,71713.0,71702.0,0.06973306]
[1773577247558,0.05188088,71712.0,71702.0,0.06973306]
[1773577248790,0.06972358,71712.0,71701.0,0.06973306]
[1773577248991,0.05188088,71711.0,71701.0,0.06973306]
[1773577252621,0.05188088,71711.0,71701.0,0.06993306]
[1773577253914,0.05188088,71710.0,71701.0,0.06993306]
[1773577255192,0.05188088,71710.0,71701.0,0.0002]
[1773577255193,0.12160616,71710.0,71701.0,0.0002]
[1773577255392,0.05188088,71710.0,71701.0,0.0002]
[1773577257297,0.12160667,71710.0,71701.0,0.0002]
[1773577258618,0.12170667,71710.0,71701.0,0.0002]
[1773577259962,0.1216078,71709.0,71701.0,0.0002]
[1773577260258,0.05188088,71709.0,71701.0,0.0002]
[1773577261356,0.05188088,71709.0,71701.0,0.06993392]
[1773577263016,0.05188088,71709.0,71701.0,0.0002]
[1773577263653,0.05188088,71709.0,71701.0,0.06993385]
[1773577264545,0.05188088,71709.0,71701.0,0.06983385]
[1773577265302,0.05188088,71709.0,71701.0,0.0001]
[1773577266726,0.05188088,71709.0,71700.0,0.0697349]
[1773577267030,0.05188088,71707.0,71699.0,0.0002]
[1773577267227,0.0014,71706.0,71699.0,0.0002]
[1773577268393,0.0001,71701.0,71699.0,0.0002]
[1773577268617,0.0014,71706.0,71699.0,0.0002]
[1773577269203,0.0001,71701.0,71699.0,0.0002]
[1773577269558,0.07112944,71706.0,71699.0,0.00055786]
[1773577269919,0.0001,71701.0,71699.0,0.00055786]
[1773577270122,0.07112944,71706.0,71699.0,0.00055786]
[1773577271830,0.07108698,71706.0,71699.0,0.00055786]
[1773577274856,0.12294663,71706.0,71699.0,0.00055786]
[1773577275941,0.12294663,71706.0,71699.0,0.00045786]
[1773577276138,0.07208698,71706.0,71699.0,0.00045786]
[1773577276465,0.07208698,71706.0,71694.0,0.06974013]
[1773577276466,0.05185965,71705.0,71694.0,0.06974066]
[1773577276670,0.05192943,71705.0,71694.0,0.06974066]
[1773577278470,0.05163072,71703.0,71699.0,0.0002]
[1773577278872,0.05163072,71703.0,71694.0,0.06974066]
[1773577279940,0.0001,71699.0,71694.0,0.06974066]
[1773577280894,0.0001,71699.0,71693.0,0.0002]
[1773577281048,0.0001,71699.0,71689.0,0.06994523]
[1773577281049,0.05293072,71698.0,71689.0,0.0002]
[1773577281554,0.05293072,71698.0,71690.0,0.0002]
[1773577281995,0.06973792,71697.0,71690.0,0.0002]
[1773577282193,0.12126864,71697.0,71690.0,0.0002]
[1773577291958,0.06973987,71695.0,71677.0,0.06975697]
[1773577292279,0.05140572,71694.0,71677.0,0.06975697]
[1773577293032,0.05140572,71694.0,71677.0,0.07115697]
[1773577296665,0.06784182,71693.0,71677.0,0.07115697]
[1773577296898,0.0014,71692.0,71677.0,0.07115697]
[1773577298801,0.0001,71680.0,71677.0,0.07135697]
[1773577299105,0.06974376,71691.0,71677.0,0.07135697]
[1773577299922,0.06974376,71691.0,71677.0,0.07146428]
[1773577304666,0.0014,71692.0,71677.0,0.07146428]
[1773577304870,0.0002276,71699.0,71692.0,0.0014]
[1773577305072,0.0002276,71699.0,71686.0,0.0014]
[1773577305290,0.0002276,71699.0,71687.0,0.0014]
[1773577306578,0.00022001,71694.0,71687.0,0.0014]
[1773577306820,0.00022001,71694.0,71688.0,0.06974668]
[1773577307192,0.00022001,71702.0,71688.0,0.06974668]
[1773577307595,0.00022001,71705.0,71688.0,0.06974668]
[1773577307916,0.0001276,71706.0,71688.0,0.06974668]
[1773577308316,0.06994788,71706.0,71688.0,0.06974668]
[1773577309396,0.06994788,71706.0,71688.0,0.06964668]
[1773577310944,0.1213536,71706.0,71688.0,0.06964668]
[1773577312039,0.05162432,71706.0,71688.0,0.06964668]
[1773577312255,0.12135358,71706.0,71688.0,0.06964668]
[1773577313431,0.12157359,71706.0,71688.0,0.06964668]
[1773577315343,0.12157359,71706.0,71689.0,0.0014]
[1773577316446,0.12157359,71706.0,71690.0,0.06974473]
[1773577316683,0.12297359,71706.0,71690.0,0.06974473]
[1773577318300,0.12157359,71706.0,71690.0,0.06974473]
[1773577318504,0.07156787,71706.0,71690.0,0.06964473]
[1773577319003,0.06972909,71707.0,71690.0,0.06964473]
[1773577320727,0.0699491,71707.0,71690.0,0.06964473]
[1773577320885,0.00022001,71707.0,71690.0,0.06964473]
[1773577321919,0.06994825,71707.0,71690.0,0.06964473]
[1773577326229,0.12135397,71707.0,71690.0,0.06964473]
[1773577329582,0.12145397,71707.0,71690.0,0.06964473]
[1773577330787,0.05140572,71706.0,71690.0,0.06964473]
[1773577333242,0.00032001,71707.0,71690.0,0.06964473]
[1773577333614,0.00022001,71709.0,71690.0,0.23662661]
[1773577333771,0.00022001,71709.0,71691.0,0.16698188]
[1773577334161,0.00022001,71709.0,71692.0,0.06974278]
[1773577335304,0.00022001,71709.0,71692.0,0.23672466]
[1773577336177,0.00022001,71709.0,71692.0,0.06974278]
[1773577336431,0.00022001,71709.0,71695.0,0.16698188]
[1773577336632,0.00022001,71709.0,71696.0,0.16838188]
[1773577338348,0.00022001,71709.0,71697.0,0.06973792]
[1773577345184,0.04832579,71708.0,71697.0,0.05040761]
[1773577345401,0.04832579,71708.0,71697.0,0.02177032]
[1773577358634,0.04832579,71708.0,71694.0,0.0697385]
[1773577358635,0.0328405,71706.0,71693.0,0.06974172]
[1773577360482,0.0328405,71704.0,71697.0,0.0002]
[1773577362394,0.0328405,71704.0,71691.0,0.06974288]
[1773577362395,0.06973208,71703.0,71692.0,0.06974226]
[1773577362562,0.0328405,71702.0,71692.0,0.06974226]
[1773577363490,0.0328405,71702.0,71690.0,0.06994462]
[1773577364484,0.0328405,71700.0,71690.0,0.06994462]
[1773577369073,0.0697351,71700.0,71690.0,0.06994462]
[1773577369274,0.0328405,71699.0,71690.0,0.06994462]
[1773577369879,0.0328405,71699.0,71690.0,0.07009282]
[1773577370737,0.0328405,71699.0,71690.0,0.07109282]
[1773577371454,0.0328405,71698.0,71690.0,0.07109282]
[1773577371668,0.0328405,71698.0,71690.0,0.07009282]
[1773577371897,0.0328405,71698.0,71685.0,0.0014]
[1773577373343,0.02852856,71697.0,71686.0,0.06974862]
[1773577374398,0.02852856,71697.0,71679.0,0.06975539]
[1773577375392,0.02852856,71695.0,71678.0,0.0001298]
[1773577375540,0.02852856,71693.0,71678.0,0.0001298]
[1773577377364,0.06974278,71692.0,71678.0,0.0001298]
[1773577377498,0.02852856,71691.0,71678.0,0.0001298]
[1773577378756,0.02852856,71691.0,71678.0,0.0003298]
[1773577379550,0.02852856,71689.0,71679.0,0.06975543]
[1773577381067,0.02852856,71687.0,71679.0,0.06975543]
[1773577385659,0.02852856,71687.0,71679.0,0.06995543]
[1773577388371,0.0014,71688.0,71679.0,0.06995543]
[1773577394199,0.02852856,71687.0,71679.0,0.06995543]
[1773577399222,0.02852856,71687.0,71679.0,0.0002]
[1773577399628,0.02852856,71687.0,71679.0,0.06995543]
[1773577400450,0.06974862,71686.0,71675.0,0.0014]
[1773577400663,0.02852856,71685.0,71672.0,0.06981224]
[1773577401270,0.06975057,71684.0,71672.0,0.06981224]
[1773577401485,0.02852856,71683.0,71672.0,0.06981224]
[1773577401687,0.02847687,71681.0,71672.0,0.06981224]
[1773577402757,0.06994997,71684.0,71672.0,0.06981224]
[1773577403000,0.0014,71683.0,71672.0,0.06981224]
[1773577403151,0.02987687,71683.0,71672.0,0.06981224]
[1773577403351,0.02847687,71681.0,71672.0,0.06981224]
[1773577405243,0.09823038,71681.0,71672.0,0.06981224]
[1773577407142,0.09823038,71681.0,71672.0,0.07001224]
[1773577411016,0.02847687,71680.0,71672.0,0.07001224]
[1773577412480,0.02847687,71680.0,71670.0,0.06996225]
[1773577413231,0.02847687,71678.0,71670.0,0.06996225]
[1773577413657,0.06975543,71679.0,71670.0,0.06996225]
[1773577413658,0.02847687,71676.0,71670.0,0.06996225]
[1773577413823,0.02843438,71676.0,71670.0,0.06996225]
[1773577414385,0.02843438,71676.0,71670.0,0.0002]
[1773577414739,0.02843438,71676.0,71670.0,0.06996416]
[1773577416372,0.0014,71677.0,71670.0,0.06996416]
[1773577418792,0.07115767,71677.0,71670.0,0.06996416]
[1773577420403,0.07115767,71677.0,71670.0,0.0002]
[1773577420621,0.09963454,71677.0,71664.0,0.0175781]
[1773577420817,0.09963454,71677.0,71666.0,0.06976806]
[1773577421059,0.07115767,71677.0,71663.0,0.069771]
[1773577421363,0.09963454,71677.0,71663.0,0.069771]
[1773577421569,0.09823454,71677.0,71663.0,0.069771]
[1773577421751,0.0014,71676.0,71663.0,0.069771]
[1773577421957,0.00135751,71676.0,71663.0,0.069771]
[1773577422210,0.0014,71675.0,71663.0,0.069771]
[1773577422639,0.02847687,71685.0,71664.0,0.00560351]
[1773577422866,0.06995035,71684.0,71664.0,0.00560351]
[1773577423076,0.07135035,71684.0,71664.0,0.00560351]
[1773577423280,0.0014,71683.0,71664.0,0.00560351]
[1773577423490,0.06995035,71684.0,71664.0,0.00560351]
[1773577423658,0.0014,71683.0,71664.0,0.00560351]
[1773577424245,0.0014,71683.0,71663.0,0.069771]
[1773577424445,0.02987687,71683.0,71663.0,0.069771]
[1773577424690,0.06975251,71682.0,71663.0,0.069771]
[1773577424848,0.02847687,71681.0,71664.0,0.0014]
[1773577425187,0.02847687,71681.0,71665.0,0.0014]
[1773577425957,0.02847687,71681.0,71663.0,0.071771]
[1773577426155,0.02847687,71681.0,71666.0,0.0014]
[1773577426585,0.02847687,71681.0,71667.0,0.0014]
[1773577426882,0.02847687,71681.0,71668.0,0.06976614]
[1773577427030,0.02869688,71681.0,71668.0,0.07116614]
[1773577427457,0.00022001,71681.0,71668.0,0.07116614]
[1773577436092,0.00022001,71681.0,71668.0,0.07136614]
[1773577437207,0.00022001,71681.0,71669.0,0.02788791]
[1773577438312,0.00022001,71681.0,71670.0,0.06976419]
[1773577438463,0.00022001,71681.0,71671.0,0.02788791]
[1773577440242,0.06997432,71681.0,71669.0,0.06976419]
[1773577440378,0.06997432,71681.0,71669.0,0.06976505]
[1773577443842,0.06997432,71681.0,71668.0,0.06996532]
[1773577444180,0.06997432,71681.0,71668.0,0.0002]
[1773577444485,0.06997432,71681.0,71668.0,0.06996593]
[1773577452984,0.06997432,71681.0,71668.0,0.0002]
[1773577454079,0.06997432,71681.0,71668.0,0.06996609]
[1773577464604,0.06997432,71681.0,71668.0,0.0002]
[1773577471215,0.07097432,71681.0,71668.0,0.0002]
[1773577472837,0.06997432,71681.0,71668.0,0.0002]
[1773577473255,0.07097432,71681.0,71668.0,0.0002]
[1773577473420,0.06997432,71681.0,71668.0,0.0002]
[1773577473958,0.06997432,71681.0,71668.0,0.02642779]
[1773577479358,0.04895342,71684.0,71668.0,0.02642779]
[1773577479542,0.02895063,71685.0,71670.0,0.02421547]
[1773577479732,0.07007408,71686.0,71670.0,0.02421547]
[1773577480373,0.07147366,71686.0,71670.0,0.02421547]
[1773577480772,0.00022001,71681.0,71670.0,0.02421547]
[1773577481977,0.00022001,71681.0,71672.0,0.02421547]
[1773577486737,0.00022001,71681.0,71674.0,0.02421547]
[1773577487079,0.00022001,71681.0,71674.0,0.02391629]
[1773577488900,0.00034886,71696.0,71676.0,0.02421547]
[1773577489121,0.06974087,71694.0,71676.0,0.02421547]
[1773577489438,0.06974087,71694.0,71678.0,0.02421547]
[1773577491567,0.06974087,71694.0,71679.0,0.06975543]
[1773577491725,0.06974087,71694.0,71680.0,0.02333624]
[1773577493425,0.00034781,71693.0,71681.0,0.06975349]
[1773577493775,0.06995946,71696.0,71682.0,0.02421148]
[1773577494372,0.06996018,71695.0,71682.0,0.02421148]
[1773577496601,0.06996018,71695.0,71684.0,0.02421148]
[1773577500332,0.06996018,71695.0,71685.0,0.06974959]
[1773577500482,0.06996018,71695.0,71685.0,0.09396107]
[1773577501835,0.07136018,71695.0,71685.0,0.09396107]
[1773577504022,0.00162001,71695.0,71685.0,0.09396107]
[1773577504202,0.0014,71694.0,71686.0,0.02421148]
[1773577505195,0.07114164,71694.0,71683.0,0.06975063]
[1773577508421,0.07114164,71694.0,71682.0,0.06975211]
[1773577510486,0.07114164,71694.0,71675.0,0.06988658]
[1773577510692,0.07114164,71694.0,71676.0,0.02421148]
[1773577510993,0.0014,71693.0,71676.0,0.02421148]
[1773577511152,0.06996085,71695.0,71676.0,0.02421148]
[1773577511153,0.00022001,71695.0,71676.0,0.02421148]
[1773577511381,0.001,71694.0,71676.0,0.02421148]
[1773577512668,0.00162001,71695.0,71678.0,0.02421148]
[1773577513058,0.00022001,71695.0,71678.0,0.02421148]
[1773577514705,0.00022001,71695.0,71679.0,0.06975543]
[1773577514906,0.00022001,71695.0,71680.0,0.02421148]
[1773577515112,0.00022001,71695.0,71682.0,0.02421148]
[1773577517535,0.00022001,71695.0,71684.0,0.02421148]
[1773577517536,0.06995992,71695.0,71684.0,0.02421148]
[1773577518068,0.06995992,71695.0,71683.0,0.07115154]
[1773577519561,0.06995992,71695.0,71682.0,0.0014]
[1773577520264,0.00012885,71694.0,71682.0,0.0014]
[1773577520694,0.06995992,71695.0,71682.0,0.0014]
[1773577522101,0.02222723,71694.0,71683.0,0.0002]
[1773577522706,0.0014,71693.0,71683.0,0.0002]
[1773577524320,0.06974278,71692.0,71683.0,0.06995152]
[1773577537199,0.06974278,71692.0,71676.0,0.0002]
[1773577537374,0.02222723,71689.0,71676.0,0.06995819]
[1773577539217,0.06974668,71688.0,71676.0,0.06995819]
[1773577539417,0.0014,71687.0,71676.0,0.06995819]
[1773577541418,0.06974862,71686.0,71676.0,0.06995819]
[1773577554826,0.06996863,71686.0,71676.0,0.06995819]
[1773577557194,0.06996863,71686.0,71676.0,0.01888424]
[1773577558352,0.0014,71685.0,71676.0,0.01888424]
[1773577559189,0.06996863,71686.0,71676.0,0.08864165]
[1773577559394,0.0014,71685.0,71676.0,0.08864165]
[1773577559601,0.0014,71685.0,71676.0,0.06975741]
[1773577559804,0.0014,71685.0,71677.0,0.01888424]
[1773577560178,0.00034886,71695.0,71677.0,0.01888424]
[1773577560384,0.07114417,71691.0,71677.0,0.01888424]
[1773577562572,0.07114417,71691.0,71679.0,0.01888424]
[1773577562737,0.07136418,71691.0,71679.0,0.01888424]
[1773577565164,0.07136418,71691.0,71680.0,0.06975446]
[1773577565340,0.07136418,71691.0,71681.0,0.01888424]
[1773577569887,0.07136418,71691.0,71682.0,0.06975251]
[1773577570097,0.07136418,71691.0,71683.0,0.01888424]
[1773577570394,0.06996418,71691.0,71683.0,0.01888424]
[1773577570585,0.0014,71690.0,71683.0,0.01888424]
[1773577570772,0.06996418,71691.0,71683.0,0.01888424]
[1773577575217,0.06996418,71691.0,71680.0,0.06975446]
[1773577589479,0.00022001,71695.0,71680.0,0.06975446]
[1773577589480,0.06996106,71694.0,71680.0,0.06975446]
[1773577590222,0.00022001,71694.0,71682.0,0.06975251]
[1773577590421,0.06996096,71694.0,71682.0,0.06975251]
[1773577590629,0.00022001,71694.0,71682.0,0.06975251]
[1773577592079,0.00012885,71692.0,71682.0,0.06975251]
[1773577595146,0.00022001,71694.0,71682.0,0.06975251]
[1773577595988,0.00022001,71696.0,71682.0,0.06975251]
[1773577596391,0.00022001,71699.0,71682.0,0.06975251]
[1773577598828,0.00022001,71699.0,71682.0,0.07175251]
[1773577599149,0.00022001,71699.0,71682.0,0.06975251]
[1773577599547,0.00022001,71699.0,71683.0,0.16718643]
[1773577600176,0.00022001,71699.0,71684.0,0.06975057]
[1773577601952,0.00034781,71700.0,71684.0,0.06975057]
[1773577608170,0.00034781,71700.0,71684.0,0.236937]
[1773577608989,0.06982561,71710.0,71693.0,0.16718643]
[1773577609273,0.06982561,71710.0,71694.0,0.0014]
[1773577609471,0.0001,71710.0,71695.0,0.0014]
[1773577610238,0.0001,71710.0,71696.0,0.06973889]
[1773577612796,0.00028485,71708.0,71696.0,0.06973889]
[1773577625477,0.04526828,71707.0,71696.0,0.06973889]
[1773577630449,0.04508881,71707.0,71696.0,0.06973889]
[1773577631435,0.04508881,71707.0,71696.0,0.06993889]
[1773577633151,0.04508881,71707.0,71698.0,0.00012882]
[1773577634461,0.04508881,71707.0,71696.0,0.06973889]
[1773577639558,0.04508881,71707.0,71696.0,0.06993889]
[1773577646126,0.04530882,71707.0,71696.0,0.06993889]
[1773577657002,0.04530882,71707.0,71696.0,0.07093889]
[1773577657820,0.00028485,71708.0,71696.0,0.07093889]
[1773577659171,0.00028485,71708.0,71696.0,0.06993889]
[1773577660735,0.02770115,71707.0,71696.0,0.06993889]
[1773577661608,0.02770115,71707.0,71696.0,0.06973854]
[1773577661832,0.02770115,71707.0,71696.0,0.03839972]
[1773577662700,0.01644005,71706.0,71696.0,0.03939972]
[1773577662902,0.01644005,71706.0,71696.0,0.03839972]
[1773577664252,0.01644005,71706.0,71696.0,0.0318237]
[1773577664384,0.01644005,71706.0,71696.0,0.02562579]
[1773577664785,0.01604412,71704.0,71696.0,0.02562579]
[1773577666110,0.06973111,71704.0,71694.0,0.06368965]
[1773577666317,0.01604412,71703.0,71694.0,0.05118833]
[1773577666945,0.01604412,71703.0,71694.0,0.05138833]
[1773577668727,0.07113111,71705.0,71694.0,0.05138833]
[1773577673766,0.07135112,71705.0,71694.0,0.05138833]
[1773577674418,0.01522598,71704.0,71694.0,0.05138833]
[1773577675741,0.01522598,71704.0,71694.0,0.0002]
[1773577676069,0.08495765,71704.0,71694.0,0.0002]
[1773577679413,0.06973167,71704.0,71695.0,0.06973987]
[1773577681946,0.07135021,71705.0,71695.0,0.08400087]
[1773577688501,0.07135021,71705.0,71695.0,0.06973987]
[1773577691649,0.07135021,71705.0,71692.0,0.07114237]
[1773577693055,0.07135021,71705.0,71694.0,0.06973987]
[1773577703840,0.07135021,71705.0,71694.0,0.06993987]
[1773577714136,0.07135021,71705.0,71694.0,0.0699402]
[1773577714690,0.07135021,71705.0,71694.0,0.08514618]
[1773577714991,0.02508242,71706.0,71694.0,0.0699402]
[1773577715188,0.0711302,71705.0,71695.0,0.01520598]
[1773577717189,0.0711302,71705.0,71697.0,0.01520598]
[1773577718722,0.07135021,71705.0,71697.0,0.01520598]
[1773577719714,0.07135021,71705.0,71698.0,0.01520598]
[1773577723306,0.07135021,71705.0,71697.0,0.06973742]
[1773577725105,0.07135021,71705.0,71694.0,0.08514618]
[1773577725106,0.07135021,71705.0,71695.0,0.06973987]
[1773577725698,0.07135021,71705.0,71695.0,0.08494585]
[1773577726039,0.07135021,71705.0,71696.0,0.01520598]
[1773577726202,0.07119167,71705.0,71696.0,0.01520598]
[1773577726637,0.00022001,71705.0,71696.0,0.01520598]
[1773577726838,0.0014,71712.0,71696.0,0.01533378]
[1773577727037,0.06972431,71711.0,71698.0,0.06973695]
[1773577727216,0.06972431,71711.0,71699.0,0.01520598]
[1773577727622,0.0014,71710.0,71699.0,0.01520598]
[1773577727821,0.06972431,71711.0,71699.0,0.01520598]
[1773577728005,0.0014,71710.0,71699.0,0.01520598]
[1773577728426,0.0014,71709.0,71699.0,0.01520598]
[1773577728628,0.06972431,71711.0,71699.0,0.01520598]
[1773577728828,0.0014,71710.0,71699.0,0.01520598]
[1773577729224,0.0014,71709.0,71701.0,0.01520598]
[1773577731844,0.0014,71709.0,71702.0,0.06973306]
[1773577735616,0.07112627,71709.0,71702.0,0.06973306]
[1773577740419,0.07112627,71709.0,71698.0,0.06973695]
[1773577740724,0.0014,71708.0,71699.0,0.0149682]
[1773577742240,0.04513243,71709.0,71699.0,0.0149682]